Cogmind - Beta 16 @@@ ROGUE MODE // 2025.10.25 @ 16:41:38 Player: celerysam Result: Destroyed by 18-Q20(R) with Subdweller Machine Gun Performance ------------- Evolutions (0) 0 Regions Visited (2) 400 Robots Destroyed (19) 95 Value Destroyed (477) 477 Prototype IDs (0) 0 Alien Tech Used (0) 0 Bonus (0) 0 TOTAL SCORE: 972 Bonus ------- None Cogmind --------- Core Integrity 0/250 Matter 215/300 Energy 100/100 System Corruption 0% Temperature Cool (0) Movement Rolling (117) Ox1 Location -10/Subcaves Parts ------- > --- POWER (1) -------- (None) > --- PROPULSION (2) --- Compact Wheel Subdweller Monowheel > --- UTILITY (2) ------ High-capacity Storage Unit > --- WEAPON (2) ------- Battle Cannon Ripper > --- INVENTORY (20) --- ECM Suite Scrap Shield SUBCON Basin (Full) Peak State ------------ > --- POWER ------------ Ion Engine > --- PROPULSION ------- Subdweller Monowheel Subdweller Monowheel > --- UTILITY ---------- High-capacity Storage Unit Light Armor Plating > --- WEAPON ----------- Barrage Gun Battle Cannon > --- INVENTORY -------- Light Treads ECM Suite Datajack Hammer Ripper SUBCON Basin [Rating: 30] Favorites ----------- Power Ion Engine Engine Ion Engine Propulsion Light Treads Treads Light Treads Leg Aluminum Leg Wheel Subdweller Monowheel Utility Light Armor Plating Storage High-capacity Storage Unit Protection Light Armor Plating Weapon Light Assault Rifle Energy Gun Particle Gun Ballistic Gun Light Assault Rifle Ballistic Cannon Battle Cannon Impact Weapon Hammer Slashing Weapon Ripper Build | -11 -10 -10 ------- Run | Yrd Mat Sub Slots Evolved . | . . . Power . | . . . Propulsion . | . . . Utility . | . . . Weapon . | . . . Parts Attached 33 | 6 14 13 Power 5 | 1 2 2 Engine 5 | 1 2 2 Core . | . . . Reactor . | . . . Propulsion 10 | 2 4 4 Treads 2 | . 2 . Leg 2 | 2 . . Wheel 6 | . 2 4 Hover . | . . . Flight . | . . . Utility 7 | 1 5 1 Device . | . . . Storage 4 | 1 3 . Processor . | . . . Hackware . | . . . Protection 3 | . 2 1 Artifact . | . . . Weapon 11 | 2 3 6 Energy Gun 2 | 1 . 1 Energy Cannon . | . . . Ballistic Gun 5 | 1 3 1 Ballistic Cannon 2 | . . 2 Launcher . | . . . Special Weapon . | . . . Impact Weapon 1 | . . 1 Slashing Weapon 1 | . . 1 Piercing Weapon . | . . . Special Melee Weapon . | . . . Unidentified Prototypes . | . . . Parts Lost 9 | . 4 5 Power 2 | . 1 1 Propulsion 1 | . 1 . Utility 2 | . . 2 Weapon 4 | . 2 2 Highest Loss Streak 3 | . 3 2 To Critical Strikes . | . . . Average Backups 11 | 4 13 10 Power 2 | . 2 1 Propulsion 1 | 3 1 1 Utility 4 | . 6 3 Weapon 2 | . 2 2 Tool/Special . | . . . Unused Backups 12 | . . 12 Power 3 | . . 3 Propulsion . | . . . Utility 6 | . . 6 Weapon 2 | . . 2 Tool/Special 1 | . . 1 Average Slot Usage (%) 96 | . 96 97 Engine 13 | . 13 12 Treads 14 | . 18 10 Leg 1 | . 4 . Wheel 11 | . 3 17 Storage 14 | . 14 14 Protection 12 | . 12 12 Energy Gun 4 | . 3 5 Ballistic Gun 15 | . 24 7 Ballistic Cannon 2 | . . 4 Impact Weapon 5 | . . 9 Peak Build Rating 30 | 6 9 30 Average Rating 15 | 3 7 21 On Entrance 5 | . 6 9 Avg Prop Armor Cover (%) 4 | . . 4 Naked Turns . | . . . Heaviest Build 91 | 10 91 54 Greatest Support 40 | 20 40 40 Greatest Overweight (x) 5 | . 5 3 Average Overweight (x) 1 | . 1 1 Largest Inventory Capacity 25 | 8 25 20 Average Capacity 19 | 6 18 20 Most Carried 20 | 6 19 20 Average Carried 16 | 4 13 19 Final Capacity 20 | 8 20 20 Final Carried 19 | 6 19 18 Class Distribution -------------------- 100% | Mutant Dominant Class ---------------- Mutant | -10/Materials Mutant | -10/Subcaves Resources | -11 -10 -10 ----------- Run | Yrd Mat Sub Matter Collected 785 | 182 166 437 Remotely . | . . . Salvage Created 490 | . 391 99 Parts 35 | . 29 6 Haulers Intercepted 1 | . 1 . Recyclers Shooed . | . . . Parts Field Recycled . | . . . Retrieved Matter . | . . . Parts Self-Destructed 12 | . . 12 Prevented . | . . . Parts Restored . | . . . Kills | -11 -10 -10 ------- Run | Yrd Mat Sub Combat Hostiles Destroyed 16 | . 11 5 Guns 14 | . 11 3 Cannons 2 | . . 2 Classes Destroyed 5 | . 4 1 Hauler 1 | . 1 . Watcher 2 | . 2 . Swarmer 6 | . 6 . Grunt 5 | . 5 . Subdweller 5 | . . 5 Best Kill Streak 3 | . 3 2 Combat Bots Only 3 | . 3 2 Max Kills in Single Turn 1 | . 1 1 Gunslinging . | . . . Exploded . | . . . Melee . | . . . Uniques/NPCs Destroyed . | . . . Combat | -11 -10 -10 -------- Run | Yrd Mat Sub Hostile Shots Fired 161 | . 94 67 Missed 44 | . 18 26 Hits 117 | . 76 41 Projectile 117 | . 76 41 Critical Strikes 3 | . 2 1 Damage Taken 1745 | . 809 936 Core 250 | . 130 120 Absorbed by Shields . | . . . Core Remaining (%) 100 | 100 . . Volleys Fired 88 | . 54 34 Largest 2 | . 2 2 Hottest 85 | . 60 85 Shots Fired 164 | . 103 61 Gun 131 | . 103 28 Cannon 33 | . . 33 Launcher . | . . . Special . | . . . Kinetic 128 | . 69 59 Thermal 36 | . 34 2 Explosive . | . . . Electromagnetic . | . . . Robot Hit Streak 17 | . 6 17 Robot Miss Streak 4 | . 4 3 Penetration Max . | . . . Secondary Targets 4 | . 3 1 Max Gunslinging Chain 1 | . 1 1 Shots Hit Robots 107 | . 58 49 Core Hits 38 | . 27 11 Critical Kills . | . . . Critical Parts Destroyed . | . . . Critical Strikes 1 | . . 1 Blast 1 | . . 1 Melee Attacks 25 | . . 25 Impact 25 | . . 25 Slashing . | . . . Piercing . | . . . Sneak Attacks . | . . . Combat Hostiles . | . . . Follow-up Attacks . | . . . Damage Inflicted 1501 | . 651 850 Guns 978 | . 651 327 Cannons 523 | . . 523 Explosions . | . . . Melee . | . . . Ramming . | . . . Kinetic 1240 | . 403 837 Thermal 261 | . 248 13 Explosive . | . . . Electromagnetic . | . . . Impact . | . . . Slashing . | . . . Piercing . | . . . Highest Corruption . | . . . Average Corruption . | . . . Corruption Purged . | . . . Corruption Blocked . | . . . Overload Shots . | . . . Overflow Damage . | . . . Projectiles . | . . . Explosions . | . . . Melee . | . . . Knockbacks 8 | . . 8 Impact . | . . . Kinetic 8 | . . 8 Secondary . | . . . Self-Inflicted Damage . | . . . Shots . | . . . Rammed . | . . . Targets Rammed . | . . . Kicked . | . . . Crushed . | . . . Highest Temperature 146 | . 146 2 Average Temperature 39 | . 39 2 Received Heat Transfer 462 | . 318 144 Siege Activations . | . . . Martial Activations . | . . . Shielding Activations . | . . . Robots Disrupted . | . . . Combat Hostiles . | . . . Robots Corrupted . | . . . Combat Hostiles . | . . . Parts Fried . | . . . Impact Corruptions . | . . . Robots Melted . | . . . Combat Hostiles . | . . . Parts Melted 2 | . 1 1 Heat Transferred 587 | . 550 37 Parts Sabotaged . | . . . Parts Stolen . | . . . Parts Stripped . | . . . Power Chain Reactions . | . . . Alert | -11 -10 -10 ------- Run | Yrd Mat Sub Maximum Alert Level . | . . . Low Security (%) 100 | 100 100 . Level 1 . | . . . Level 2 . | . . . Level 3 . | . . . Level 4 . | . . . Level 5 . | . . . High Security . | . . . Max Security . | . . . Peak Influence 94 | . 94 . Initial . | . . . Average 15 | . 15 . Influence Increases 416 | . 296 120 Destroy 0b10 Robot/C 220 | . 220 . Destroy 0b10 Robot/NC 15 | . 15 . Destroy Leader 46 | . 46 . Lose Combat Pursuer 135 | . 15 120 Influence Decreases 416 | . 289 127 Entered New Map 4 | . . 4 Time Decay 343 | . 249 94 Lost Part 69 | . 40 29 Squads Dispatched 2 | . 2 . Investigation 2 | . 2 . Extermination . | . . . Reinforcement . | . . . Assault . | . . . Garrison . | . . . Intercept . | . . . Searches Triggered . | . . . Construction Impeded . | . . . Haulers Reinforced . | . . . Active Scanning Responses . | . . . Cargo Convoy Interrupts . | . . . Stealth | -11 -10 -10 --------- Run | Yrd Mat Sub Distress Signals 2 | . 2 . Communications Jammed . | . . . Distress Signals . | . . . Times Spotted 32 | . 23 9 Peak Tracking Total 6 | . 6 2 Tactical Retreats 4 | . 1 3 Traps | -11 -10 -10 ------- Run | Yrd Mat Sub Traps Triggered 5 | . 2 3 Indirectly . | . . . Trap Hack Attempts . | . . . Triggered . | . . . Disarmed . | . . . Reprogrammed . | . . . Reused . | . . . Traps Extracted . | . . . Installed . | . . . Triggered . | . . . Machines | -11 -10 -10 ---------- Run | Yrd Mat Sub Machines Disabled . | . . . Max in Single Turn . | . . . Machines Repaired . | . . . Machines Dismantled . | . . . Machines Sabotaged . | . . . Overloaded Fab Kills . | . . . Hacking | -11 -10 -10 --------- Run | Yrd Mat Sub Machines Accessed 3 | . 1 2 Terminals 1 | . 1 . Fabricators . | . . . Repair Stations . | . . . Recycling Units . | . . . Scanalyzers . | . . . Garrison Access . | . . . Total Hacks 6 | . 3 3 Successful 3 | . . 3 Failed 3 | . 3 . Catastrophic 1 | . 1 . Database Lockouts . | . . . Manual 3 | . 3 . Terminals 3 | . 3 . Fabricators . | . . . Repair Stations . | . . . Recycling Units . | . . . Scanalyzers . | . . . Garrison Access . | . . . Terminal Hacks 3 | . . 3 Record 1 | . . 1 Open Door 1 | . . 1 Release Object 1 | . . 1 Fabricator Hacks . | . . . Repair Station Hacks . | . . . Recycling Unit Hacks . | . . . Scanalyzer . | . . . Garrison Access Hacks . | . . . Unauthorized Hacks . | . . . Terminals . | . . . Fabricators . | . . . Repair Stations . | . . . Recycling Units . | . . . Scanalyzers . | . . . Garrison Access . | . . . Data Cores Recovered . | . . . Used . | . . . Hacking Detections 1 | . 1 . Full Trace Events . | . . . Feedback Events . | . . . Feedback Blocked . | . . . Robot Schematics Acquired . | . . . Robots Built . | . . . Authchips . | . . . Time . | . . . Total Robot Build Rating . | . . . Part Schematics Acquired . | . . . Parts Built . | . . . Authchips . | . . . Time . | . . . Total Part Build Rating . | . . . Part Studies Acquired . | . . . Parts Repaired . | . . . Time . | . . . Parts Recycled . | . . . Recycled Matter . | . . . Retrieved Matter . | . . . Retrieved Components . | . . . Parts Scanalyzed . | . . . Part Schematics Acquired . | . . . Parts Damaged . | . . . Bothacking | -11 -10 -10 ------------ Run | Yrd Mat Sub Used RIF Installer . | . . . Robots Hacked . | . . . Non-combat . | . . . Combat . | . . . Robot Hacks Applied . | . . . Relay Couplers Released . | . . . Fabnet Peak Effective % . | . . . Robots Rewired . | . . . Allies Hacked . | . . . Hacks Repelled . | . . . Allies | -11 -10 -10 -------- Run | Yrd Mat Sub Total Allies . | . . . Largest Group . | . . . Highest-Rated Group . | . . . Highest-Rated Ally . | . . . Total Orders . | . . . Ally Attacks . | . . . Total Damage . | . . . Kills . | . . . Allies Corrupted . | . . . Allies Melted . | . . . Intel | -11 -10 -10 ------- Run | Yrd Mat Sub Active Infowar (turns) . | . . . Robot Analysis Total . | . . . Derelict Logs Recovered . | . . . Drone Launches . | . . . Drone Recoveries . | . . . Exploration | -11 -10 -10 ------------- Run | Yrd Mat Sub Turns Passed 3390 | 79 1508 1803 Spaces Moved 1769 | 69 622 1078 Core 26 | 26 . . Treads 601 | . 378 223 Legs 179 | 43 136 . Wheels 963 | . 108 855 Hover . | . . . Flight . | . . . Fastest Speed 50 | 50 105 117 Average Speed 160 | 93 198 143 Slowest Speed 240 | 120 240 240 Overloaded Moves . | . . . Propulsion Burnouts . | . . . Robots Hopped . | . . . Potential Cave-ins . | . . . Cave-ins Triggered . | . . . Exploration Rate (%) 52 | 3 83 70 Regions Visited 2 Branch Regions 1 Pre-discovered Areas 1 | . . 1 Known Exits Taken . | . . . Unknown Exits Taken 2 | 1 1 . Scrap Searched 9 | . . 9 Spaces Dug 6 | . . 6 Terrain Destroyed 7 | . . 7 Melee 6 | . . 6 Projectile 1 | . . 1 AOE . | . . . Terrain Rammed . | . . . Walls Destroyed . | . . . Machines Disabled . | . . . Actions | -11 -10 -10 --------- Run | Yrd Mat Sub Total 2113 | 80 798 1235 Wait 131 | . 86 45 Move 1767 | 68 621 1078 Hop . | . . . Pick Up 36 | 6 20 10 Fast Attach 9 | 6 1 2 Attach 7 | . 4 3 Detach . | . . . Swap 20 | . 9 11 Drop 30 | . 3 27 Fire 88 | . 54 34 Melee 25 | . . 25 Ram . | . . . Kick . | . . . Crush . | . . . Escape Stasis . | . . . Rewire . | . . . Trap . | . . . Miscellaneous . | . . . Route ------- -11/Scrapyard -10/Materials (discovered 4 exits: [*Mat x3] / *Sub) -10/Subcaves (discovered 2 exits: [*Mat x2]) History --------- Turn | Location | Event 9 | -11/Scrapyard | Discovered new exit (range 16) 80 | -11/Scrapyard | Entered Materials 249 | -10/Materials | Discovered new exit (range 14) 307 | -10/Materials | Build established: Mutant 351 | -10/Materials | Discovered new exit (range 16) 462 | -10/Materials | Lost 3 parts (1n2w) 1200 | -10/Materials | Discovered new exit (range 9) 1303 | -10/Materials | Core integrity fell below 50% 1507 | -10/Materials | Discovered new exit (range 6) 1588 | -10/Materials | Entered Subcaves 1707 | -10/Subcaves | Shifting Twisted Machinery released Sub. Power Source 1754 | -10/Subcaves | Shifting Twisted Machinery released Battle Cannon 1779 | -10/Subcaves | Discovered new exit (range 4) 1782 | -10/Subcaves | Learned location of Zion (-7) 1782 | -10/Subcaves | Met a Zionite searching for "candidates" 2255 | -10/Subcaves | Found SUBCON Basin 2701 | -10/Subcaves | Discovered new exit (range 15) 2970 | -10/Subcaves | Shifting Twisted Machinery released Sub. Monowheel 3290 | -10/Subcaves | Core integrity fell below 20% 3386 | -10/Subcaves | Ambushed by Subdwellers from Twisted Machinery 3391 | -10/Subcaves | Destroyed by 18-Q20(R) with Subdweller Machine Gun Last Messages --------------- 03197_ Found Scrap Shield. 03197_ Found Sub. Laser. 03197_ Found 64 Matter. 03212_ Ion Engine destroyed. 03214_ QX-UO0(R) knocked back. 03227_ Subatomizers dissect the Lgt. Treads. 03229_ QX-UO0(R) knocked back. 03232_ Lgt. Armor Plating destroyed. 03232_ QX-UO0(R) destroyed. 03273_ Triggered Piercing Trap. 03273_ Spikes shoot up from the floor. 03273_ Critical hit (Impale). 03273_ Battle Cannon destroyed. 03289_ Triggered Piercing Trap. 03289_ Spikes shoot up from the floor. 03289_ Critical hit (Impale). 03320_ Sub. Monowheel shoots sparks and powers down. 03331_ 1T-HUF(u) tweaks Twisted Machinery. 03336_ Dropped Broken Sub. Monowheel. Map ----- +----------------------------------------------------+ | ?????????????????????????????????????????????????? | | ?????????????????????????????????????????????????? | | ?????????????????????????????????????????????????? | | ?????????????????????????????????????????????????? | | ?????????????????????????????????????????????????? | | ?????????????????????????????????????????????????? | | ?????????????????????????????????????????????????? | | ?????????????????????????????????????????????????? | | ?????????????????????????????????????????????????? | | ?????????????????????????????????????????????????? | | ?????????????????????????????????????????????????? | | ?????????????????????????????????????????????????? | | ??#####????????????????????????? ????????????????? | | ## #???????????????????????? R ??????????????? | | # #???###??????????????????? R""??????????????? | | ### #????????????????? "#??????????????? | | ""# #???????????????? #???????????????? | | " #??????????????? #????????????????? | | ## #????????????????? #????????????????? | | " &## #????????????????? #?????????????????? | | " ## ###??????????????# #?????????????????? | | ### #???????????### #?????????????????? | | ### #?#########?# #?????????????????? | | ### ## # ### #?????????????????? | | ## ## #?????????????? | | #### @ #??????????????? | | ##?# # # #???????????? | | ### #### # ## #??????????? | | ###?# ## ##? ?????????? | | ##??## ## ## # #?? ?????????? | | ???## #########?? ??????????? | | ??## #??????????# ??????????? | | ??# ###??????????? ??????????? | | ??# #?????????????# ## ???????????? | | ??# ### #?????????????# #?# "???????????? | | ??# #?## ##?????????????? ##??? ????????????? | | ??# #??####??????????????? #?????????????????? | | ??# #?????????????????????? ?????????????????? | | ??# #?????????????????????? ?????????????????? | | ??# ##????????????????????????????????????????? | | ??# ##???????????????????????????????????????? | | ??# #???????????????????????????????????????? | | ??#### ##???????????????????????????????????????? | | ????## #????????????????????????????????????????? | | ???## #????????????????????????????????????????? | | #?## ##????????????????????????????????????????? | | ### #?????????????????????????????????????????? | | ### ####???????????????????????????????????????? | | #?# ## ##??????????????????????????????????????? | | ### ""#??????????????????????????????????????? | +----------------------------------------------------+ Best States ------------- Heat Dissipation 25 Energy Generation 15 Energy Capacity 250 Matter Stores 300 Matter Capacity 300 Sight Range 16 Terrain Scan Density 10 Armor Coverage 150 Evasion (%) 55 Recoil Reduction 2 Item Schematics ----------------- None Robot Schematics ------------------ None Fabricated ------------ Nothing Repaired ---------- Nothing Studied --------- None Alien Tech Used ----------------- None Achievements -------------- None Challenges ------------ None Game ------ Seed JammingMicrowarpClaws Manual? 0 Play Time 00:22:23 Cumulative 272.3 hours Start 2025.10.25 @ 16:16:06 End 2025.10.25 @ 16:41:38 Sessions 1 Manual Loads 0 Difficulty Rogue Special Mode None Game No. 431 Rogue 431 Adventurer 0 Explorer 0 Win Type - Total 1 Types 1/0/0/0/0/0/0/0/0/0 Lore% 64 Gallery% 62 Achievement% 25 Wizard Run 0 Options --------- Layout 1 ASCII 0 Keyboard 0 Movement Mouse Keybinds 0 Fullscreen 2 Font 24/Smallcaps Map View 50x35 Zoom Use 0% Tactical HUD 1 Map Filters NONE Filters NONE Steam 1 RUN: ad0dfbd3-1f82-4fdc-bac9-4edd4c076ca7